Workbook

Sheet المقسطون
C2: ملف العميــل | D2: 2600 | E2: الاســم | F2: =VLOOKUP(D2,B27:K62,2,0) -> 1 | J2: تاريخ اليوم : | K2: =TODAY() -> 2023-11-19
C4: تقيـيم العميل | D4: ='حركة تسديد عميل'!E8 -> عميل مميز
A5: نظـام الخصــم | I5: حساب نســبة التقسـيط | L5: نظام تحويل التاريخ من هجري لميلادي
E6: إسم البضاعة :
C7: السعر النقدي | D7: =VLOOKUP(D2,B27:K62,4,0) -> 50000 | I7: السعر | J7: الاشهر | L7: بداية التسديد | M7: نهاية التسديد
C8: قيمة العقد بالتقسيط | D8: =VLOOKUP(D2,B27:K62,5,0) -> 70000 | E8: موديلها : | I8: 50000 | J8: =VLOOKUP(D2,B27:K62,3,1) -> 35 | L8: =D12 -> 2021-03-27 | M8: =D13 -> 2023-12-26
C9: المقدم | D9: 0 | I9: الزيادة | J9: =SUM(I8*(J8%+5%)) -> 20000 | L9: =TEXT(L8,"[$-,197000]B2yyyy/mm/dd;@") -> 2021/03/27 | M9: =TEXT(M8,"[$-,197000]B2yyyy/mm/dd;@")+1 -> 2023-12-27
C10: القسط الشهري | D10: =VLOOKUP(D2,B27:K62,6,0) -> 2000 | F10: الأقساط التأخرة | G10: ='حركة تسديد عميل'!E6 -> 0 | I10: بعد الزيادة | J10: =SUM(I8+J9) -> 70000 | L10: =TEXT(L8+1,"[$-,197]B2yyyy/mm/dd;@") -> 1442/08/15 | M10: =TEXT(M8+1,"[$-,197]B2yyyy/mm/dd;@") -> 1445/06/14
C11: ماتم سداده من المبلغ | D11: =IF($D$12>$K$2,0,IF($D$13<$K$2,$D$8,(SUM(DATEDIF($D$12,$K$2,"Y")*12)+(DATEDIF($D$12,$K$2,"ym"))+(IF(DATEDIF($D$12,$K$2,"md")<>0,1,0)))*D10)) -> 64000 | F11: المبــالغ المتأخرة | G11: ='حركة تسديد عميل'!E7 -> 0 | I11: القسط الشهري | J11: =SUM(J10/J8) -> 2000
C12: بداية التسديد | D12: =VLOOKUP(D2,B27:K62,7,0) -> 2021-03-27 | I12: التاريخ الميلادي والتاريخ الهجري
C13: نهاية التسديد | D13: =VLOOKUP(D2,B27:K62,8,0) -> 2023-12-26 | F13: المدة | G13: =(D8-D9)/D10 -> 35
C14: الأشهر المسددة | D14: =(D11/D10) -> 32 | F14: الربح كامل | G14: =D8-D7 -> 20000 | I14: ملف العميــل | J14: الاســم | L14: مدة العقـد | M14: من | N14: الى
C15: الأشهر المتبقية | D15: =D17/D10 -> 3 | F15: الربح الشهري | G15: =G14/G13 -> 571.4285714 | I15: =D2 -> 2600 | J15: =F2 -> 1 | L15: =G13 -> 35 | M15: =D12 -> 2021-03-27 | N15: =D13 -> 2023-12-26
F16: النسبة | G16: =(G14/(D7-D9))*100 -> 40 | I16: حالة الاشهر وقيمة العقد | M16: =TEXT(M15,"[$-,197000]B2yyyy/mm/dd;@") -> 2021/03/27 | N16: =EDATE(M16,L15) -> 2024-02-27
C17: الباقي من المبلغ | D17: =D8-D11 -> 6000 | F17: النسبة السنوية | G17: =(G16/G13)*12 -> 13.71428571 | I17: الأشهر المسددة | J17: ='حركة تسديد عميل'!H7 -> 0 | K17: المبــالغ المســدة | L17: =(J17*D10) -> 0 | M17: نسبة السداد بـ %
C18: الخصم | D18: =((D17*G17%)*(D15/12))/(1+((G17%)*(D15/12))) -> 198.8950276 | F18: النسبة الشهرية | G18: =G16/G13 -> 1.142857143 | I18: الأشهر المتبقية | J18: =L15-J17 -> 35 | K18: المبــالغ المتبـقية | L18: ='حركة تسديد عميل'!H10 -> 42700 | M18: =L17/D8 -> 0
C19: المطلوب | D19: =D17-D18 -> 5801.104972 | I19: حـالة العقــد | J19: =VLOOKUP(D2,B27:N62,11,0) -> العقـد سارى | K19: مبلغ السداد المبكر | L19: =IF(J19="سداد مبكر",INDEX(N27:N62,MATCH(J19,L27:L62,0)),"") ->  | M19: تاريخ السداد المبكر | N19: =IF(J19="سداد مبكر",INDEX(M27:M62,MATCH(J19,L27:L62,0)),"") -> 
M20: =VLOOKUP(D5,B28:L63,11,0) -> 
N22: =VLOOKUP(E7,C30:M65,11,0) -> 
N23: =VLOOKUP(E8,C31:M66,11,0) -> 
B24: ملاحظة : اذا تم السداد قبل الموعد المحدد يتم إضافة 1000 ( الف ريال )
B26: رقم الملف | C26: الاسم | D26: مدة القرض ( بالشهر ) | E26: السعر النقدي | F26: القيمة بعد التقسيط | G26: القسط | H26: من | I26: الى | J26: الربــح | K26: الدخل الشهري | L26: حـالة العقـد | M26: سداد مبكر بتاريخ | N26: المبلغ المسدد
B27: 100 | C27: 1 | D27: 40 | E27: 45000 | F27: 46400 | G27: 1160 | H27: 2008-10-25 | I27: =MID(TEXT(H27,"b2dd.mm.yyyy"),1,2)-MID(TEXT(H27+ROUND((D27-1)*354.367056/12,0),"b2dd.mm.yyyy"),1,2)+H27+ROUND((D27-1)*354.367056/12,0) -> 2011-12-20 | J27: =SUM(E27*(D27%+5%)) -> 20250 | K27: 0 | L27: =IFERROR(IF(AND(M27<>"",M27<I27),"سداد مبكر",IF(TODAY()=I27,"العقد انتهى اليوم",IF(TODAY()>I27,"العقـد منتهى",IF(TODAY()<H27,"لم يتم تداولة","العقـد سارى")))),"") -> العقـد منتهى
B28: 200 | C28: 1 | D28: 40 | E28: 45000 | F28: 43500 | G28: 1087 | H28: 2009-01-21 | I28: 2012-03-18 | J28: 20250 | K28: 0 | L28: =IFERROR(IF(AND(M28<>"",M28<I28),"سداد مبكر",IF(TODAY()=I28,"العقد انتهى اليوم",IF(TODAY()>I28,"العقـد منتهى",IF(TODAY()<H28,"لم يتم تداولة","العقـد سارى")))),"") -> العقـد منتهى
B29: 300 | C29: 1 | D29: 40 | E29: 45000 | F29: 46400 | G29: 1160 | H29: 2010-03-10 | I29: 2013-05-05 | J29: 20250 | K29: 0 | L29: العقـد منتهى
B30: 400 | C30: 1 | D30: 40 | E30: 45000 | F30: 39160 | G30: 979 | H30: 2010-06-07 | I30: 2013-08-01 | J30: 20250 | K30: 0 | L30: العقـد منتهى
B31: 500 | C31: 1 | D31: 40 | E31: 45000 | F31: 43520 | G31: 1088 | H31: 2010-11-01 | I31: 2013-12-28 | J31: 20250 | K31: 0 | L31: العقـد منتهى
B32: 600 | C32: 1 | D32: 40 | E32: 45000 | F32: 69024 | G32: 5507 | H32: 2010-12-31 | I32: 2014-02-25 | J32: 20250 | K32: 0 | L32: العقـد منتهى
B33: 700 | C33: 1 | D33: 40 | E33: 45000 | F33: 38124 | G33: 2118 | H33: 2011-01-30 | I33: 2014-03-26 | J33: 20250 | K33: 0 | L33: العقـد منتهى
B34: 800 | C34: 1 | D34: 40 | E34: 45000 | F34: 57592 | G34: 2504 | H34: 2011-07-26 | I34: 2014-09-19 | J34: 20250 | K34: 0 | L34: العقـد منتهى
B35: 900 | C35: 1 | D35: 40 | E35: 45000 | F35: 58000 | G35: 1450 | H35: 2011-07-26 | I35: 2014-09-19 | J35: 20250 | K35: 0 | L35: العقـد منتهى
B36: 1000 | C36: 1 | D36: 40 | E36: 45000 | F36: 58000 | G36: 1450 | H36: 2011-07-26 | I36: 2014-09-19 | J36: 20250 | K36: 0 | L36: العقـد منتهى
B37: 1100 | C37: 1 | D37: 40 | E37: 45000 | F37: 58000 | G37: 1450 | H37: 2011-08-24 | I37: 2014-10-19 | J37: 20250 | K37: 0 | L37: العقـد منتهى
B38: 1200 | C38: 1 | D38: 40 | E38: 45000 | F38: 58000 | G38: 1450 | H38: 2011-08-24 | I38: 2014-10-19 | J38: 20250 | K38: 0 | L38: العقـد منتهى
B39: 1300 | C39: 1 | D39: 40 | E39: 45000 | F39: 76850 | G39: 1921 | H39: 2011-11-21 | I39: 2015-01-15 | J39: 20250 | K39: 0 | L39: العقـد منتهى
B40: 1400 | C40: 1 | D40: 40 | E40: 45000 | F40: 62360 | G40: 1559 | H40: 2012-02-17 | I40: 2015-04-14 | J40: 20250 | K40: 0 | L40: العقـد منتهى
B41: 1500 | C41: 1 | D41: 40 | E41: 45000 | F41: 60900 | G41: 1523 | H41: 2012-03-18 | I41: 2015-05-13 | J41: 20250 | K41: 0 | L41: العقـد منتهى
B42: 1600 | C42: 1 | D42: 40 | E42: 45000 | F42: 50760 | G42: 1269 | H42: 2014-06-23 | I42: 2017-08-17 | J42: 20250 | K42: 0 | L42: العقـد منتهى
B43: 1700 | C43: 1 | D43: 40 | E43: 45000 | F43: 50760 | G43: 1269 | H43: 2014-10-19 | I43: 2017-12-13 | J43: 20250 | K43: 0 | L43: العقـد منتهى
B44: 1800 | C44: 1 | D44: 40 | E44: 45000 | F44: 53640 | G44: =F44/D44 -> 1341 | H44: 2015-01-15 | I44: 2018-03-12 | J44: 20250 | K44: 0 | L44: العقـد منتهى
B45: 1900 | C45: 1 | D45: 40 | E45: 45000 | F45: 60920 | G45: 1523 | H45: 2015-05-13 | I45: 2018-07-08 | J45: 20250 | K45: 0 | L45: العقـد منتهى
B46: 2000 | C46: 1 | D46: 40 | E46: 45000 | F46: 60750 | G46: 1518.75 | H46: 2015-07-11 | I46: 2018-09-05 | J46: 20250 | K46: 0 | L46: العقـد منتهى
B47: 2100 | C47: 1 | D47: 40 | E47: 45000 | F47: 105624 | G47: 2640.6 | H47: 2017-02-21 | I47: 2020-04-18 | J47: 20250 | K47: 0 | L47: العقـد منتهى
B48: 2200 | C48: 1 | D48: 40 | E48: 45000 | F48: =E48+J48 -> 65250 | G48: 1631.25 | H48: 2018-01-12 | I48: 2021-03-08 | J48: 20250 | K48: 0 | L48: العقـد منتهى
B49: 2300 | C49: 1 | D49: 40 | E49: 45000 | F49: 65250 | G49: 1631.25 | H49: 2018-04-10 | I49: 2021-06-05 | J49: 20250 | K49: 0 | L49: سداد مبكر | M49: 2019-02-07 | N49: 39889
B50: 2400 | C50: 1 | D50: 35 | E50: 50000 | F50: 70000 | G50: 2000 | H50: 2019-11-01 | I50: 2022-08-01 | J50: 20000 | K50: =G50 -> 2000 | L50: العقـد منتهى
B51: 2500 | C51: 1 | D51: 35 | E51: 50000 | F51: 70000 | G51: 2000 | H51: 2020-09-25 | I51: =MID(TEXT(H51,"b2dd.mm.yyyy"),1,2)-MID(TEXT(H51+ROUND((D51-1)*354.367056/12,0),"b2dd.mm.yyyy"),1,2)+H51+ROUND((D51-1)*354.367056/12,0) -> 2023-06-26 | J51: 20000 | K51: 2000 | L51: العقـد منتهى
B52: 2600 | C52: 1 | D52: 35 | E52: 50000 | F52: 70000 | G52: 2000 | H52: 2021-03-27 | I52: =MID(TEXT(H52,"b2dd.mm.yyyy"),1,2)-MID(TEXT(H52+ROUND((D52-1)*354.367056/12,0),"b2dd.mm.yyyy"),1,2)+H52+ROUND((D52-1)*354.367056/12,0) -> 2023-12-26 | J52: 20000 | K52: 2000 | L52: العقـد سارى
B53: 2700 | C53: 1 | D53: 35 | E53: 50000 | F53: 70000 | G53: =F53/D53 -> 2000 | H53: 2022-01-27 | I53: =MID(TEXT(H53,"b2dd.mm.yyyy"),1,2)-MID(TEXT(H53+ROUND((D53-1)*354.367056/12,0),"b2dd.mm.yyyy"),1,2)+H53+ROUND((D53-1)*354.367056/12,0) -> 2024-10-27 | J53: =SUM(E53*(D53%+5%)) -> 20000 | K53: 2000 | L53: =IFERROR(IF(AND(M53<>"",M53<I53),"سداد مبكر",IF(TODAY()=I53,"العقد انتهى اليوم",IF(TODAY()>I53,"العقـد منتهى",IF(TODAY()<H53,"لم يتم تداولة","العقـد سارى")))),"") -> سداد مبكر | M53: 2022-10-24 | N53: 46781
B54: 2800 | C54: 1 | D54: 60 | E54: 50000 | F54: 82500 | G54: =F54/60 -> 1375 | H54: 2023-08-27 | I54: =MID(TEXT(H54,"b2dd.mm.yyyy"),1,2)-MID(TEXT(H54+ROUND((D54-1)*354.367056/12,0),"b2dd.mm.yyyy"),1,2)+H54+ROUND((D54-1)*354.367056/12,0) -> 2028-06-03 | J54: 32500 | K54: 1375 | L54: العقـد سارى
B55: 2900 | C55: 1 | D55: 17 | E55: 35000 | F55: 42700 | G55: =F55/D55 -> 2511.764706 | H55: 2023-11-27 | I55: =MID(TEXT(H55,"b2dd.mm.yyyy"),1,2)-MID(TEXT(H55+ROUND((D55-1)*354.367056/12,0),"b2dd.mm.yyyy"),1,2)+H55+ROUND((D55-1)*354.367056/12,0) -> 2025-03-14 | J55: 7700 | K55: 2511.764706 | L55: لم يتم تداولة
G56: =F56/40 -> 0
G57: 0 | M57: `
G58: 0
G59: 0
G60: 0
G61: 0
G62: 0
E63: =SUM(E27:E62) -> 1320000 | F63: =SUM(F27:F62) -> 1733984 | J63: =SUM(J27:J62) -> 585950 | K63: =SUM(K27:K62) -> 11886.76471

Sheet حركة تسديد عميل
A2: ملف العميــل | B2: 2900 | C2: الاســم | D2: =VLOOKUP(B2,المقسطون!B26:I61,2,0) -> 1 | H2: تاريخ اليوم : | I2: =TODAY() -> 2023-11-19
B5: مدة العقد (بالاشهر) | C5: =VLOOKUP(B2,المقسطون!$B$26:$H$61,3,0) -> 17 | F5: حـالة العقــد | G5: =VLOOKUP(B2,المقسطون!B27:N62,11,0) -> لم يتم تداولة
D6: الأقساط التأخرة | E6: =COUNT(I19:I58) -> 0
B7: بداية العقد | C7: =VLOOKUP(B2,المقسطون!$B$26:$H$61,7,0) -> 2023-11-27 | D7: المبــالغ المتأخرة | E7: =IFERROR(SUM(I19:I58),"") -> 0 | G7: الأشهر المسددة | H7: =IF(COUNT(H19:H58)>C9,C9,COUNT(H19:H58))-E6 -> 0
C8: =TEXT(C7,"[$-,197000]B2yyyy/mm/dd;@") -> 2023/11/27 | D8: تقيــم العــــميل | E8: =IF(E6=0,"عميل مميز",IF(E6=1,"عميل جيد جداً",IF(E6=2,"عميل جيد",IF(E6>=3,"بلاك لست Blacklist")))) -> عميل مميز | G8: الأشهر المتبقية | H8: =C5-H7 -> 17
B9: نهاية العقد | C9: =TEXT(C7+((C5-1)*29.5),"B2yyyy/mm/")&TEXT(C7,"B2dd") -> 1446/09/15 | G9: المبــالغ المســدة | H9: =SUM(H7*C11) -> 0
C10: =ConvertDate(C9)+1 -> 2025-03-15 | G10: المبــالغ المتبـقية | H10: =SUM(H8*C11) -> 42700
B11: القســـــــط | C11: =VLOOKUP(B2,المقسطون!$B$26:$H$61,6,0) -> 2511.764706 | G11: نسبة السداد بـ % | H11: =H9/C14 -> 0
B12: السعر النقدي | C12: =VLOOKUP(B2,المقسطون!$B$26:$H$61,4,0) -> 35000
B13: الربـــــــــح | C13: =VLOOKUP(B2,المقسطون!B27:N62,9,0) -> 7700 | G13: الســداد المبكـر
B14: قيمة العقد | C14: =VLOOKUP(B2,المقسطون!$B$26:$H$61,5,0) -> 42700 | D14: حركة تسديد عميل | G14: تاريخ السداد المبكر | H14: =IF(G5="سداد مبكر",INDEX(المقسطون!M27:M62,MATCH(G5,المقسطون!L27:L62,0)),"") -> 
G16: قيمة السداد المبكر | H16: =IF(G5="سداد مبكر",INDEX(المقسطون!N28:N63,MATCH(G5,المقسطون!L28:L63,0)),"") -> 
C18: الشهــر | D18: التحصيل بالتاريخ ( هـ ) | E18: التحصيل بالتاريخ ( م ) | F18: رصيد القرض | G18: القسط | H18: التسديدات | I18: الأقساط المتأخرة
C19: =IF(D19="","",ROW()-18) -> 1 | D19: =IF(h2g(TEXT($C$7+((ROW()-19)*29.5),"B2yyyy/mm/")&TEXT($C$7,"B2dd"))>$H$14,"",IF(h2g(TEXT($C$7+((ROW()-19)*29.5),"B2yyyy/mm/")&TEXT($C$7,"B2dd"))>h2g($C$9),"",TEXT($C$7+((ROW()-19)*29.5),"B2yyyy/mm/")&TEXT($C$7,"B2dd"))) -> 1445/05/15 | E19: =IF(D19<>"",ConvertDate(D19),"") -> 2023/11/27 | F19: =C14 -> 42700 | G19: =IF($D$19="","",IF($C$14="","",$C$14/$C$5)) -> 2511.764706 | H19: =IF(I19<>"",G19-I19,IF(C19="","",IF(TODAY()>=h2g(D19),G19,""))) ->  | I19: =IFERROR(IF(VLOOKUP($B$2,' الفرق بين التاريخين '!#REF!,ROW()-16,0)=0,"",VLOOKUP($B$2,' الفرق بين التاريخين '!#REF!,ROW()-16,0)),"") -> 
C20: =IF(D20="","",ROW()-18) -> 2 | D20: =IF(h2g(TEXT($C$7+((ROW()-19)*29.5),"B2yyyy/mm/")&TEXT($C$7,"B2dd"))>$H$14,"",IF(h2g(TEXT($C$7+((ROW()-19)*29.5),"B2yyyy/mm/")&TEXT($C$7,"B2dd"))>h2g($C$9),"",TEXT($C$7+((ROW()-19)*29.5),"B2yyyy/mm/")&TEXT($C$7,"B2dd"))) -> 1445/06/15 | E20: =IF(D20<>"",ConvertDate(D20),"") -> 2023/12/27 | F20: =IF(D20="","",F19-G20) -> 40188.23529 | G20: =IF($D$19="","",IF($C$14="","",$C$14/$C$5)) -> 2511.764706 | H20: =IF(I20<>"",G20-I20,IF(C20="","",IF(TODAY()>=h2g(D20),G20,""))) ->  | I20: =IFERROR(IF(VLOOKUP($B$2,' الفرق بين التاريخين '!#REF!,ROW()-16,0)=0,"",VLOOKUP($B$2,' الفرق بين التاريخين '!#REF!,ROW()-16,0)),"") -> 
C21: 3 | D21: =IF(h2g(TEXT($C$7+((ROW()-19)*29.5),"B2yyyy/mm/")&TEXT($C$7,"B2dd"))>$H$14,"",IF(h2g(TEXT($C$7+((ROW()-19)*29.5),"B2yyyy/mm/")&TEXT($C$7,"B2dd"))>h2g($C$9),"",TEXT($C$7+((ROW()-19)*29.5),"B2yyyy/mm/")&TEXT($C$7,"B2dd"))) -> 1445/07/15 | E21: 2024/01/25 | F21: =IF(D21="","",F20-G21) -> 37676.47059 | G21: 2511.764706 | H21: =IF(I21<>"",G21-I21,IF(C21="","",IF(TODAY()>=h2g(D21),G21,""))) ->  | I21: =IFERROR(IF(VLOOKUP($B$2,' الفرق بين التاريخين '!#REF!,ROW()-16,0)=0,"",VLOOKUP($B$2,' الفرق بين التاريخين '!#REF!,ROW()-16,0)),"") -> 
C22: 4 | D22: =IF(h2g(TEXT($C$7+((ROW()-19)*29.5),"B2yyyy/mm/")&TEXT($C$7,"B2dd"))>$H$14,"",IF(h2g(TEXT($C$7+((ROW()-19)*29.5),"B2yyyy/mm/")&TEXT($C$7,"B2dd"))>h2g($C$9),"",TEXT($C$7+((ROW()-19)*29.5),"B2yyyy/mm/")&TEXT($C$7,"B2dd"))) -> 1445/08/15 | E22: 2024/02/24 | F22: 35164.70588 | G22: 2511.764706 | H22: =IF(I22<>"",G22-I22,IF(C22="","",IF(TODAY()>=h2g(D22),G22,""))) ->  | I22: =IFERROR(IF(VLOOKUP($B$2,' الفرق بين التاريخين '!#REF!,ROW()-16,0)=0,"",VLOOKUP($B$2,' الفرق بين التاريخين '!#REF!,ROW()-16,0)),"") -> 
C23: 5 | D23: =IF(h2g(TEXT($C$7+((ROW()-19)*29.5),"B2yyyy/mm/")&TEXT($C$7,"B2dd"))>$H$14,"",IF(h2g(TEXT($C$7+((ROW()-19)*29.5),"B2yyyy/mm/")&TEXT($C$7,"B2dd"))>h2g($C$9),"",TEXT($C$7+((ROW()-19)*29.5),"B2yyyy/mm/")&TEXT($C$7,"B2dd"))) -> 1445/09/15 | E23: 2024/03/24 | F23: 32652.94118 | G23: 2511.764706 | H23: =IF(I23<>"",G23-I23,IF(C23="","",IF(TODAY()>=h2g(D23),G23,""))) ->  | I23: =IFERROR(IF(VLOOKUP($B$2,' الفرق بين التاريخين '!#REF!,ROW()-16,0)=0,"",VLOOKUP($B$2,' الفرق بين التاريخين '!#REF!,ROW()-16,0)),"") -> 
C24: 6 | D24: =IF(h2g(TEXT($C$7+((ROW()-19)*29.5),"B2yyyy/mm/")&TEXT($C$7,"B2dd"))>$H$14,"",IF(h2g(TEXT($C$7+((ROW()-19)*29.5),"B2yyyy/mm/")&TEXT($C$7,"B2dd"))>h2g($C$9),"",TEXT($C$7+((ROW()-19)*29.5),"B2yyyy/mm/")&TEXT($C$7,"B2dd"))) -> 1445/10/15 | E24: 2024/04/23 | F24: 30141.17647 | G24: 2511.764706 | H24: =IF(I24<>"",G24-I24,IF(C24="","",IF(TODAY()>=h2g(D24),G24,""))) ->  | I24: =IFERROR(IF(VLOOKUP($B$2,' الفرق بين التاريخين '!#REF!,ROW()-16,0)=0,"",VLOOKUP($B$2,' الفرق بين التاريخين '!#REF!,ROW()-16,0)),"") -> 
C25: 7 | D25: =IF(h2g(TEXT($C$7+((ROW()-19)*29.5),"B2yyyy/mm/")&TEXT($C$7,"B2dd"))>$H$14,"",IF(h2g(TEXT($C$7+((ROW()-19)*29.5),"B2yyyy/mm/")&TEXT($C$7,"B2dd"))>h2g($C$9),"",TEXT($C$7+((ROW()-19)*29.5),"B2yyyy/mm/")&TEXT($C$7,"B2dd"))) -> 1445/11/15 | E25: 2024/05/22 | F25: 27629.41176 | G25: 2511.764706 | H25: =IF(I25<>"",G25-I25,IF(C25="","",IF(TODAY()>=h2g(D25),G25,""))) ->  | I25: =IFERROR(IF(VLOOKUP($B$2,' الفرق بين التاريخين '!#REF!,ROW()-16,0)=0,"",VLOOKUP($B$2,' الفرق بين التاريخين '!#REF!,ROW()-16,0)),"") -> 
C26: 8 | D26: =IF(h2g(TEXT($C$7+((ROW()-19)*29.5),"B2yyyy/mm/")&TEXT($C$7,"B2dd"))>$H$14,"",IF(h2g(TEXT($C$7+((ROW()-19)*29.5),"B2yyyy/mm/")&TEXT($C$7,"B2dd"))>h2g($C$9),"",TEXT($C$7+((ROW()-19)*29.5),"B2yyyy/mm/")&TEXT($C$7,"B2dd"))) -> 1445/12/15 | E26: 2024/06/21 | F26: 25117.64706 | G26: 2511.764706 | H26: =IF(I26<>"",G26-I26,IF(C26="","",IF(TODAY()>=h2g(D26),G26,""))) ->  | I26: =IFERROR(IF(VLOOKUP($B$2,' الفرق بين التاريخين '!#REF!,ROW()-16,0)=0,"",VLOOKUP($B$2,' الفرق بين التاريخين '!#REF!,ROW()-16,0)),"") -> 
C27: 9 | D27: =IF(h2g(TEXT($C$7+((ROW()-19)*29.5),"B2yyyy/mm/")&TEXT($C$7,"B2dd"))>$H$14,"",IF(h2g(TEXT($C$7+((ROW()-19)*29.5),"B2yyyy/mm/")&TEXT($C$7,"B2dd"))>h2g($C$9),"",TEXT($C$7+((ROW()-19)*29.5),"B2yyyy/mm/")&TEXT($C$7,"B2dd"))) -> 1446/01/15 | E27: 2024/07/21 | F27: 22605.88235 | G27: 2511.764706 | H27: =IF(I27<>"",G27-I27,IF(C27="","",IF(TODAY()>=h2g(D27),G27,""))) ->  | I27: =IFERROR(IF(VLOOKUP($B$2,' الفرق بين التاريخين '!#REF!,ROW()-16,0)=0,"",VLOOKUP($B$2,' الفرق بين التاريخين '!#REF!,ROW()-16,0)),"") -> 
C28: 10 | D28: =IF(h2g(TEXT($C$7+((ROW()-19)*29.5),"B2yyyy/mm/")&TEXT($C$7,"B2dd"))>$H$14,"",IF(h2g(TEXT($C$7+((ROW()-19)*29.5),"B2yyyy/mm/")&TEXT($C$7,"B2dd"))>h2g($C$9),"",TEXT($C$7+((ROW()-19)*29.5),"B2yyyy/mm/")&TEXT($C$7,"B2dd"))) -> 1446/02/15 | E28: 2024/08/20 | F28: 20094.11765 | G28: 2511.764706 | H28: =IF(I28<>"",G28-I28,IF(C28="","",IF(TODAY()>=h2g(D28),G28,""))) ->  | I28: =IFERROR(IF(VLOOKUP($B$2,' الفرق بين التاريخين '!#REF!,ROW()-16,0)=0,"",VLOOKUP($B$2,' الفرق بين التاريخين '!#REF!,ROW()-16,0)),"") -> 
C29: 11 | D29: =IF(h2g(TEXT($C$7+((ROW()-19)*29.5),"B2yyyy/mm/")&TEXT($C$7,"B2dd"))>$H$14,"",IF(h2g(TEXT($C$7+((ROW()-19)*29.5),"B2yyyy/mm/")&TEXT($C$7,"B2dd"))>h2g($C$9),"",TEXT($C$7+((ROW()-19)*29.5),"B2yyyy/mm/")&TEXT($C$7,"B2dd"))) -> 1446/03/15 | E29: 2024/09/18 | F29: 17582.35294 | G29: 2511.764706 | H29: =IF(I29<>"",G29-I29,IF(C29="","",IF(TODAY()>=h2g(D29),G29,""))) ->  | I29: =IFERROR(IF(VLOOKUP($B$2,' الفرق بين التاريخين '!#REF!,ROW()-16,0)=0,"",VLOOKUP($B$2,' الفرق بين التاريخين '!#REF!,ROW()-16,0)),"") -> 
C30: 12 | D30: =IF(h2g(TEXT($C$7+((ROW()-19)*29.5),"B2yyyy/mm/")&TEXT($C$7,"B2dd"))>$H$14,"",IF(h2g(TEXT($C$7+((ROW()-19)*29.5),"B2yyyy/mm/")&TEXT($C$7,"B2dd"))>h2g($C$9),"",TEXT($C$7+((ROW()-19)*29.5),"B2yyyy/mm/")&TEXT($C$7,"B2dd"))) -> 1446/04/15 | E30: 2024/10/18 | F30: 15070.58824 | G30: 2511.764706 | H30: =IF(I30<>"",G30-I30,IF(C30="","",IF(TODAY()>=h2g(D30),G30,""))) ->  | I30: =IFERROR(IF(VLOOKUP($B$2,' الفرق بين التاريخين '!#REF!,ROW()-16,0)=0,"",VLOOKUP($B$2,' الفرق بين التاريخين '!#REF!,ROW()-16,0)),"") -> 
C31: 13 | D31: =IF(h2g(TEXT($C$7+((ROW()-19)*29.5),"B2yyyy/mm/")&TEXT($C$7,"B2dd"))>$H$14,"",IF(h2g(TEXT($C$7+((ROW()-19)*29.5),"B2yyyy/mm/")&TEXT($C$7,"B2dd"))>h2g($C$9),"",TEXT($C$7+((ROW()-19)*29.5),"B2yyyy/mm/")&TEXT($C$7,"B2dd"))) -> 1446/05/15 | E31: 2024/11/16 | F31: 12558.82353 | G31: 2511.764706 | H31: =IF(I31<>"",G31-I31,IF(C31="","",IF(TODAY()>=h2g(D31),G31,""))) ->  | I31: =IFERROR(IF(VLOOKUP($B$2,' الفرق بين التاريخين '!#REF!,ROW()-16,0)=0,"",VLOOKUP($B$2,' الفرق بين التاريخين '!#REF!,ROW()-16,0)),"") -> 
C32: 14 | D32: =IF(h2g(TEXT($C$7+((ROW()-19)*29.5),"B2yyyy/mm/")&TEXT($C$7,"B2dd"))>$H$14,"",IF(h2g(TEXT($C$7+((ROW()-19)*29.5),"B2yyyy/mm/")&TEXT($C$7,"B2dd"))>h2g($C$9),"",TEXT($C$7+((ROW()-19)*29.5),"B2yyyy/mm/")&TEXT($C$7,"B2dd"))) -> 1446/06/15 | E32: 2024/12/16 | F32: 10047.05882 | G32: 2511.764706 | H32: =IF(I32<>"",G32-I32,IF(C32="","",IF(TODAY()>=h2g(D32),G32,""))) -> 
C33: 15 | D33: =IF(h2g(TEXT($C$7+((ROW()-19)*29.5),"B2yyyy/mm/")&TEXT($C$7,"B2dd"))>$H$14,"",IF(h2g(TEXT($C$7+((ROW()-19)*29.5),"B2yyyy/mm/")&TEXT($C$7,"B2dd"))>h2g($C$9),"",TEXT($C$7+((ROW()-19)*29.5),"B2yyyy/mm/")&TEXT($C$7,"B2dd"))) -> 1446/07/15 | E33: 2025/01/14 | F33: 7535.294118 | G33: 2511.764706 | H33: =IF(I33<>"",G33-I33,IF(C33="","",IF(TODAY()>=h2g(D33),G33,""))) ->  | I33: =IFERROR(IF(VLOOKUP($B$2,' الفرق بين التاريخين '!#REF!,ROW()-16,0)=0,"",VLOOKUP($B$2,' الفرق بين التاريخين '!#REF!,ROW()-16,0)),"") -> 
C34: 16 | D34: =IF(h2g(TEXT($C$7+((ROW()-19)*29.5),"B2yyyy/mm/")&TEXT($C$7,"B2dd"))>$H$14,"",IF(h2g(TEXT($C$7+((ROW()-19)*29.5),"B2yyyy/mm/")&TEXT($C$7,"B2dd"))>h2g($C$9),"",TEXT($C$7+((ROW()-19)*29.5),"B2yyyy/mm/")&TEXT($C$7,"B2dd"))) -> 1446/08/15 | E34: =IF(D34<>"",ConvertDate(D34),"") -> 2025/02/13 | F34: 5023.529412 | G34: 2511.764706 | H34: =IF(I34<>"",G34-I34,IF(C34="","",IF(TODAY()>=h2g(D34),G34,""))) ->  | I34: =IFERROR(IF(VLOOKUP($B$2,' الفرق بين التاريخين '!#REF!,ROW()-16,0)=0,"",VLOOKUP($B$2,' الفرق بين التاريخين '!#REF!,ROW()-16,0)),"") -> 
C35: 17 | D35: =IF(h2g(TEXT($C$7+((ROW()-19)*29.5),"B2yyyy/mm/")&TEXT($C$7,"B2dd"))>$H$14,"",IF(h2g(TEXT($C$7+((ROW()-19)*29.5),"B2yyyy/mm/")&TEXT($C$7,"B2dd"))>h2g($C$9),"",TEXT($C$7+((ROW()-19)*29.5),"B2yyyy/mm/")&TEXT($C$7,"B2dd"))) -> 1446/09/15 | E35: 2025/03/14 | F35: 2511.764706 | G35: 2511.764706 | H35: =IF(I35<>"",G35-I35,IF(C35="","",IF(TODAY()>=h2g(D35),G35,""))) ->  | I35: =IFERROR(IF(VLOOKUP($B$2,' الفرق بين التاريخين '!#REF!,ROW()-16,0)=0,"",VLOOKUP($B$2,' الفرق بين التاريخين '!#REF!,ROW()-16,0)),"") -> 
D36: =IF(h2g(TEXT($C$7+((ROW()-19)*29.5),"B2yyyy/mm/")&TEXT($C$7,"B2dd"))>$H$14,"",IF(h2g(TEXT($C$7+((ROW()-19)*29.5),"B2yyyy/mm/")&TEXT($C$7,"B2dd"))>h2g($C$9),"",TEXT($C$7+((ROW()-19)*29.5),"B2yyyy/mm/")&TEXT($C$7,"B2dd"))) ->  | G36: 2511.764706 | H36: =IF(I36<>"",G36-I36,IF(C36="","",IF(TODAY()>=h2g(D36),G36,""))) ->  | I36: =IFERROR(IF(VLOOKUP($B$2,' الفرق بين التاريخين '!#REF!,ROW()-16,0)=0,"",VLOOKUP($B$2,' الفرق بين التاريخين '!#REF!,ROW()-16,0)),"") -> 
D37: =IF(h2g(TEXT($C$7+((ROW()-19)*29.5),"B2yyyy/mm/")&TEXT($C$7,"B2dd"))>$H$14,"",IF(h2g(TEXT($C$7+((ROW()-19)*29.5),"B2yyyy/mm/")&TEXT($C$7,"B2dd"))>h2g($C$9),"",TEXT($C$7+((ROW()-19)*29.5),"B2yyyy/mm/")&TEXT($C$7,"B2dd"))) ->  | G37: 2511.764706 | H37: =IF(I37<>"",G37-I37,IF(C37="","",IF(TODAY()>=h2g(D37),G37,""))) ->  | I37: =IFERROR(IF(VLOOKUP($B$2,' الفرق بين التاريخين '!#REF!,ROW()-16,0)=0,"",VLOOKUP($B$2,' الفرق بين التاريخين '!#REF!,ROW()-16,0)),"") -> 
D38: =IF(h2g(TEXT($C$7+((ROW()-19)*29.5),"B2yyyy/mm/")&TEXT($C$7,"B2dd"))>$H$14,"",IF(h2g(TEXT($C$7+((ROW()-19)*29.5),"B2yyyy/mm/")&TEXT($C$7,"B2dd"))>h2g($C$9),"",TEXT($C$7+((ROW()-19)*29.5),"B2yyyy/mm/")&TEXT($C$7,"B2dd"))) ->  | G38: 2511.764706 | H38: =IF(I38<>"",G38-I38,IF(C38="","",IF(TODAY()>=h2g(D38),G38,""))) ->  | I38: =IFERROR(IF(VLOOKUP($B$2,' الفرق بين التاريخين '!#REF!,ROW()-16,0)=0,"",VLOOKUP($B$2,' الفرق بين التاريخين '!#REF!,ROW()-16,0)),"") -> 
D39: =IF(h2g(TEXT($C$7+((ROW()-19)*29.5),"B2yyyy/mm/")&TEXT($C$7,"B2dd"))>$H$14,"",IF(h2g(TEXT($C$7+((ROW()-19)*29.5),"B2yyyy/mm/")&TEXT($C$7,"B2dd"))>h2g($C$9),"",TEXT($C$7+((ROW()-19)*29.5),"B2yyyy/mm/")&TEXT($C$7,"B2dd"))) ->  | G39: 2511.764706 | H39: =IF(I39<>"",G39-I39,IF(C39="","",IF(TODAY()>=h2g(D39),G39,""))) ->  | I39: =IFERROR(IF(VLOOKUP($B$2,' الفرق بين التاريخين '!#REF!,ROW()-16,0)=0,"",VLOOKUP($B$2,' الفرق بين التاريخين '!#REF!,ROW()-16,0)),"") -> 
D40: =IF(h2g(TEXT($C$7+((ROW()-19)*29.5),"B2yyyy/mm/")&TEXT($C$7,"B2dd"))>$H$14,"",IF(h2g(TEXT($C$7+((ROW()-19)*29.5),"B2yyyy/mm/")&TEXT($C$7,"B2dd"))>h2g($C$9),"",TEXT($C$7+((ROW()-19)*29.5),"B2yyyy/mm/")&TEXT($C$7,"B2dd"))) ->  | G40: 2511.764706 | H40: =IF(I40<>"",G40-I40,IF(C40="","",IF(TODAY()>=h2g(D40),G40,""))) ->  | I40: =IFERROR(IF(VLOOKUP($B$2,' الفرق بين التاريخين '!#REF!,ROW()-16,0)=0,"",VLOOKUP($B$2,' الفرق بين التاريخين '!#REF!,ROW()-16,0)),"") -> 
D41: =IF(h2g(TEXT($C$7+((ROW()-19)*29.5),"B2yyyy/mm/")&TEXT($C$7,"B2dd"))>$H$14,"",IF(h2g(TEXT($C$7+((ROW()-19)*29.5),"B2yyyy/mm/")&TEXT($C$7,"B2dd"))>h2g($C$9),"",TEXT($C$7+((ROW()-19)*29.5),"B2yyyy/mm/")&TEXT($C$7,"B2dd"))) ->  | G41: 2511.764706 | H41: =IF(I41<>"",G41-I41,IF(C41="","",IF(TODAY()>=h2g(D41),G41,""))) ->  | I41: =IFERROR(IF(VLOOKUP($B$2,' الفرق بين التاريخين '!#REF!,ROW()-16,0)=0,"",VLOOKUP($B$2,' الفرق بين التاريخين '!#REF!,ROW()-16,0)),"") -> 
D42: =IF(h2g(TEXT($C$7+((ROW()-19)*29.5),"B2yyyy/mm/")&TEXT($C$7,"B2dd"))>$H$14,"",IF(h2g(TEXT($C$7+((ROW()-19)*29.5),"B2yyyy/mm/")&TEXT($C$7,"B2dd"))>h2g($C$9),"",TEXT($C$7+((ROW()-19)*29.5),"B2yyyy/mm/")&TEXT($C$7,"B2dd"))) ->  | G42: 2511.764706 | H42: =IF(I42<>"",G42-I42,IF(C42="","",IF(TODAY()>=h2g(D42),G42,""))) ->  | I42: =IFERROR(IF(VLOOKUP($B$2,' الفرق بين التاريخين '!#REF!,ROW()-16,0)=0,"",VLOOKUP($B$2,' الفرق بين التاريخين '!#REF!,ROW()-16,0)),"") -> 
D43: =IF(h2g(TEXT($C$7+((ROW()-19)*29.5),"B2yyyy/mm/")&TEXT($C$7,"B2dd"))>$H$14,"",IF(h2g(TEXT($C$7+((ROW()-19)*29.5),"B2yyyy/mm/")&TEXT($C$7,"B2dd"))>h2g($C$9),"",TEXT($C$7+((ROW()-19)*29.5),"B2yyyy/mm/")&TEXT($C$7,"B2dd"))) ->  | G43: 2511.764706 | H43: =IF(I43<>"",G43-I43,IF(C43="","",IF(TODAY()>=h2g(D43),G43,""))) ->  | I43: =IFERROR(IF(VLOOKUP($B$2,' الفرق بين التاريخين '!#REF!,ROW()-16,0)=0,"",VLOOKUP($B$2,' الفرق بين التاريخين '!#REF!,ROW()-16,0)),"") -> 
D44: =IF(h2g(TEXT($C$7+((ROW()-19)*29.5),"B2yyyy/mm/")&TEXT($C$7,"B2dd"))>$H$14,"",IF(h2g(TEXT($C$7+((ROW()-19)*29.5),"B2yyyy/mm/")&TEXT($C$7,"B2dd"))>h2g($C$9),"",TEXT($C$7+((ROW()-19)*29.5),"B2yyyy/mm/")&TEXT($C$7,"B2dd"))) ->  | G44: 2511.764706 | H44: =IF(I44<>"",G44-I44,IF(C44="","",IF(TODAY()>=h2g(D44),G44,""))) ->  | I44: =IFERROR(IF(VLOOKUP($B$2,' الفرق بين التاريخين '!#REF!,ROW()-16,0)=0,"",VLOOKUP($B$2,' الفرق بين التاريخين '!#REF!,ROW()-16,0)),"") -> 
D45: =IF(h2g(TEXT($C$7+((ROW()-19)*29.5),"B2yyyy/mm/")&TEXT($C$7,"B2dd"))>$H$14,"",IF(h2g(TEXT($C$7+((ROW()-19)*29.5),"B2yyyy/mm/")&TEXT($C$7,"B2dd"))>h2g($C$9),"",TEXT($C$7+((ROW()-19)*29.5),"B2yyyy/mm/")&TEXT($C$7,"B2dd"))) ->  | G45: 2511.764706 | H45: =IF(I45<>"",G45-I45,IF(C45="","",IF(TODAY()>=h2g(D45),G45,""))) ->  | I45: =IFERROR(IF(VLOOKUP($B$2,' الفرق بين التاريخين '!#REF!,ROW()-16,0)=0,"",VLOOKUP($B$2,' الفرق بين التاريخين '!#REF!,ROW()-16,0)),"") -> 
D46: =IF(h2g(TEXT($C$7+((ROW()-19)*29.5),"B2yyyy/mm/")&TEXT($C$7,"B2dd"))>$H$14,"",IF(h2g(TEXT($C$7+((ROW()-19)*29.5),"B2yyyy/mm/")&TEXT($C$7,"B2dd"))>h2g($C$9),"",TEXT($C$7+((ROW()-19)*29.5),"B2yyyy/mm/")&TEXT($C$7,"B2dd"))) ->  | G46: 2511.764706 | H46: =IF(I46<>"",G46-I46,IF(C46="","",IF(TODAY()>=h2g(D46),G46,""))) ->  | I46: =IFERROR(IF(VLOOKUP($B$2,' الفرق بين التاريخين '!#REF!,ROW()-16,0)=0,"",VLOOKUP($B$2,' الفرق بين التاريخين '!#REF!,ROW()-16,0)),"") -> 
D47: =IF(h2g(TEXT($C$7+((ROW()-19)*29.5),"B2yyyy/mm/")&TEXT($C$7,"B2dd"))>$H$14,"",IF(h2g(TEXT($C$7+((ROW()-19)*29.5),"B2yyyy/mm/")&TEXT($C$7,"B2dd"))>h2g($C$9),"",TEXT($C$7+((ROW()-19)*29.5),"B2yyyy/mm/")&TEXT($C$7,"B2dd"))) ->  | G47: 2511.764706 | H47: =IF(I47<>"",G47-I47,IF(C47="","",IF(TODAY()>=h2g(D47),G47,""))) ->  | I47: =IFERROR(IF(VLOOKUP($B$2,' الفرق بين التاريخين '!#REF!,ROW()-16,0)=0,"",VLOOKUP($B$2,' الفرق بين التاريخين '!#REF!,ROW()-16,0)),"") -> 
D48: =IF(h2g(TEXT($C$7+((ROW()-19)*29.5),"B2yyyy/mm/")&TEXT($C$7,"B2dd"))>$H$14,"",IF(h2g(TEXT($C$7+((ROW()-19)*29.5),"B2yyyy/mm/")&TEXT($C$7,"B2dd"))>h2g($C$9),"",TEXT($C$7+((ROW()-19)*29.5),"B2yyyy/mm/")&TEXT($C$7,"B2dd"))) ->  | G48: 2511.764706 | H48: =IF(I48<>"",G48-I48,IF(C48="","",IF(TODAY()>=h2g(D48),G48,""))) ->  | I48: =IFERROR(IF(VLOOKUP($B$2,' الفرق بين التاريخين '!#REF!,ROW()-16,0)=0,"",VLOOKUP($B$2,' الفرق بين التاريخين '!#REF!,ROW()-16,0)),"") -> 
D49: =IF(h2g(TEXT($C$7+((ROW()-19)*29.5),"B2yyyy/mm/")&TEXT($C$7,"B2dd"))>$H$14,"",IF(h2g(TEXT($C$7+((ROW()-19)*29.5),"B2yyyy/mm/")&TEXT($C$7,"B2dd"))>h2g($C$9),"",TEXT($C$7+((ROW()-19)*29.5),"B2yyyy/mm/")&TEXT($C$7,"B2dd"))) ->  | G49: 2511.764706 | H49: =IF(I49<>"",G49-I49,IF(C49="","",IF(TODAY()>=h2g(D49),G49,""))) ->  | I49: =IFERROR(IF(VLOOKUP($B$2,' الفرق بين التاريخين '!#REF!,ROW()-16,0)=0,"",VLOOKUP($B$2,' الفرق بين التاريخين '!#REF!,ROW()-16,0)),"") -> 
D50: =IF(h2g(TEXT($C$7+((ROW()-19)*29.5),"B2yyyy/mm/")&TEXT($C$7,"B2dd"))>$H$14,"",IF(h2g(TEXT($C$7+((ROW()-19)*29.5),"B2yyyy/mm/")&TEXT($C$7,"B2dd"))>h2g($C$9),"",TEXT($C$7+((ROW()-19)*29.5),"B2yyyy/mm/")&TEXT($C$7,"B2dd"))) ->  | G50: 2511.764706
D51: =IF(h2g(TEXT($C$7+((ROW()-19)*29.5),"B2yyyy/mm/")&TEXT($C$7,"B2dd"))>$H$14,"",IF(h2g(TEXT($C$7+((ROW()-19)*29.5),"B2yyyy/mm/")&TEXT($C$7,"B2dd"))>h2g($C$9),"",TEXT($C$7+((ROW()-19)*29.5),"B2yyyy/mm/")&TEXT($C$7,"B2dd"))) ->  | G51: 2511.764706 | H51: =IF(I51<>"",G51-I51,IF(C51="","",IF(TODAY()>=h2g(D51),G51,""))) ->  | I51: =IFERROR(IF(VLOOKUP($B$2,' الفرق بين التاريخين '!#REF!,ROW()-16,0)=0,"",VLOOKUP($B$2,' الفرق بين التاريخين '!#REF!,ROW()-16,0)),"") -> 
D52: =IF(h2g(TEXT($C$7+((ROW()-19)*29.5),"B2yyyy/mm/")&TEXT($C$7,"B2dd"))>$H$14,"",IF(h2g(TEXT($C$7+((ROW()-19)*29.5),"B2yyyy/mm/")&TEXT($C$7,"B2dd"))>h2g($C$9),"",TEXT($C$7+((ROW()-19)*29.5),"B2yyyy/mm/")&TEXT($C$7,"B2dd"))) ->  | G52: 2511.764706 | H52: =IF(I52<>"",G52-I52,IF(C52="","",IF(TODAY()>=h2g(D52),G52,""))) ->  | I52: =IFERROR(IF(VLOOKUP($B$2,' الفرق بين التاريخين '!#REF!,ROW()-16,0)=0,"",VLOOKUP($B$2,' الفرق بين التاريخين '!#REF!,ROW()-16,0)),"") -> 
D53: =IF(h2g(TEXT($C$7+((ROW()-19)*29.5),"B2yyyy/mm/")&TEXT($C$7,"B2dd"))>$H$14,"",IF(h2g(TEXT($C$7+((ROW()-19)*29.5),"B2yyyy/mm/")&TEXT($C$7,"B2dd"))>h2g($C$9),"",TEXT($C$7+((ROW()-19)*29.5),"B2yyyy/mm/")&TEXT($C$7,"B2dd"))) ->  | G53: 2511.764706 | H53: =IF(I53<>"",G53-I53,IF(C53="","",IF(TODAY()>=h2g(D53),G53,""))) -> 
D54: =IF(h2g(TEXT($C$7+((ROW()-19)*29.5),"B2yyyy/mm/")&TEXT($C$7,"B2dd"))>$H$14,"",IF(h2g(TEXT($C$7+((ROW()-19)*29.5),"B2yyyy/mm/")&TEXT($C$7,"B2dd"))>h2g($C$9),"",TEXT($C$7+((ROW()-19)*29.5),"B2yyyy/mm/")&TEXT($C$7,"B2dd"))) ->  | G54: 2511.764706 | H54: =IF(I54<>"",G54-I54,IF(C54="","",IF(TODAY()>=h2g(D54),G54,""))) ->  | I54: =IFERROR(IF(VLOOKUP($B$2,' الفرق بين التاريخين '!#REF!,ROW()-16,0)=0,"",VLOOKUP($B$2,' الفرق بين التاريخين '!#REF!,ROW()-16,0)),"") -> 
D55: =IF(h2g(TEXT($C$7+((ROW()-19)*29.5),"B2yyyy/mm/")&TEXT($C$7,"B2dd"))>$H$14,"",IF(h2g(TEXT($C$7+((ROW()-19)*29.5),"B2yyyy/mm/")&TEXT($C$7,"B2dd"))>h2g($C$9),"",TEXT($C$7+((ROW()-19)*29.5),"B2yyyy/mm/")&TEXT($C$7,"B2dd"))) ->  | G55: 2511.764706 | H55: =IF(I55<>"",G55-I55,IF(C55="","",IF(TODAY()>=h2g(D55),G55,""))) ->  | I55: =IFERROR(IF(VLOOKUP($B$2,' الفرق بين التاريخين '!#REF!,ROW()-16,0)=0,"",VLOOKUP($B$2,' الفرق بين التاريخين '!#REF!,ROW()-16,0)),"") -> 
D56: =IF(h2g(TEXT($C$7+((ROW()-19)*29.5),"B2yyyy/mm/")&TEXT($C$7,"B2dd"))>$H$14,"",IF(h2g(TEXT($C$7+((ROW()-19)*29.5),"B2yyyy/mm/")&TEXT($C$7,"B2dd"))>h2g($C$9),"",TEXT($C$7+((ROW()-19)*29.5),"B2yyyy/mm/")&TEXT($C$7,"B2dd"))) ->  | G56: 2511.764706 | H56: =IF(I56<>"",G56-I56,IF(C56="","",IF(TODAY()>=h2g(D56),G56,""))) ->  | I56: =IFERROR(IF(VLOOKUP($B$2,' الفرق بين التاريخين '!#REF!,ROW()-16,0)=0,"",VLOOKUP($B$2,' الفرق بين التاريخين '!#REF!,ROW()-16,0)),"") -> 
D57: =IF(h2g(TEXT($C$7+((ROW()-19)*29.5),"B2yyyy/mm/")&TEXT($C$7,"B2dd"))>$H$14,"",IF(h2g(TEXT($C$7+((ROW()-19)*29.5),"B2yyyy/mm/")&TEXT($C$7,"B2dd"))>h2g($C$9),"",TEXT($C$7+((ROW()-19)*29.5),"B2yyyy/mm/")&TEXT($C$7,"B2dd"))) ->  | G57: 2511.764706 | H57: =IF(I57<>"",G57-I57,IF(C57="","",IF(TODAY()>=h2g(D57),G57,""))) ->  | I57: =IFERROR(IF(VLOOKUP($B$2,' الفرق بين التاريخين '!#REF!,ROW()-16,0)=0,"",VLOOKUP($B$2,' الفرق بين التاريخين '!#REF!,ROW()-16,0)),"") -> 
D58: =IF(h2g(TEXT($C$7+((ROW()-19)*29.5),"B2yyyy/mm/")&TEXT($C$7,"B2dd"))>$H$14,"",IF(h2g(TEXT($C$7+((ROW()-19)*29.5),"B2yyyy/mm/")&TEXT($C$7,"B2dd"))>h2g($C$9),"",TEXT($C$7+((ROW()-19)*29.5),"B2yyyy/mm/")&TEXT($C$7,"B2dd"))) ->  | G58: 2511.764706 | H58: =IF(I58<>"",G58-I58,IF(C58="","",IF(TODAY()>=h2g(D58),G58,""))) ->  | I58: =IFERROR(IF(VLOOKUP($B$2,' الفرق بين التاريخين '!#REF!,ROW()-16,0)=0,"",VLOOKUP($B$2,' الفرق بين التاريخين '!#REF!,ROW()-16,0)),"") -> 
C59: =IF(D59="","",ROW()-18) ->  | D59: =IF(h2g(TEXT($C$7+((ROW()-19)*29.5),"B2yyyy/mm/")&TEXT($C$7,"B2dd"))>$H$14,"",IF(h2g(TEXT($C$7+((ROW()-19)*29.5),"B2yyyy/mm/")&TEXT($C$7,"B2dd"))>h2g($C$9),"",TEXT($C$7+((ROW()-19)*29.5),"B2yyyy/mm/")&TEXT($C$7,"B2dd"))) ->  | E59: =IF(D59<>"",ConvertDate(D59),"") ->  | F59: =IF(D59="","",F58-G59) ->  | G59: 2511.764706 | H59: =IF(I59<>"",G59-I59,IF(C59="","",IF(TODAY()>=h2g(D59),G59,""))) ->  | I59: =IFERROR(IF(VLOOKUP($B$2,' الفرق بين التاريخين '!#REF!,ROW()-16,0)=0,"",VLOOKUP($B$2,' الفرق بين التاريخين '!#REF!,ROW()-16,0)),"") -> 
D60: =IF(h2g(TEXT($C$7+((ROW()-19)*29.5),"B2yyyy/mm/")&TEXT($C$7,"B2dd"))>$H$14,"",IF(h2g(TEXT($C$7+((ROW()-19)*29.5),"B2yyyy/mm/")&TEXT($C$7,"B2dd"))>h2g($C$9),"",TEXT($C$7+((ROW()-19)*29.5),"B2yyyy/mm/")&TEXT($C$7,"B2dd"))) ->  | G60: 2511.764706 | H60: =IF(I60<>"",G60-I60,IF(C60="","",IF(TODAY()>=h2g(D60),G60,""))) ->  | I60: =IFERROR(IF(VLOOKUP($B$2,' الفرق بين التاريخين '!#REF!,ROW()-16,0)=0,"",VLOOKUP($B$2,' الفرق بين التاريخين '!#REF!,ROW()-16,0)),"") -> 
D61: =IF(h2g(TEXT($C$7+((ROW()-19)*29.5),"B2yyyy/mm/")&TEXT($C$7,"B2dd"))>$H$14,"",IF(h2g(TEXT($C$7+((ROW()-19)*29.5),"B2yyyy/mm/")&TEXT($C$7,"B2dd"))>h2g($C$9),"",TEXT($C$7+((ROW()-19)*29.5),"B2yyyy/mm/")&TEXT($C$7,"B2dd"))) ->  | G61: 2511.764706 | H61: =IF(I61<>"",G61-I61,IF(C61="","",IF(TODAY()>=h2g(D61),G61,""))) ->  | I61: =IFERROR(IF(VLOOKUP($B$2,' الفرق بين التاريخين '!#REF!,ROW()-16,0)=0,"",VLOOKUP($B$2,' الفرق بين التاريخين '!#REF!,ROW()-16,0)),"") -> 
D62: =IF(h2g(TEXT($C$7+((ROW()-19)*29.5),"B2yyyy/mm/")&TEXT($C$7,"B2dd"))>$H$14,"",IF(h2g(TEXT($C$7+((ROW()-19)*29.5),"B2yyyy/mm/")&TEXT($C$7,"B2dd"))>h2g($C$9),"",TEXT($C$7+((ROW()-19)*29.5),"B2yyyy/mm/")&TEXT($C$7,"B2dd"))) ->  | G62: 2511.764706 | H62: =IF(I62<>"",G62-I62,IF(C62="","",IF(TODAY()>=h2g(D62),G62,""))) ->  | I62: =IFERROR(IF(VLOOKUP($B$2,' الفرق بين التاريخين '!#REF!,ROW()-16,0)=0,"",VLOOKUP($B$2,' الفرق بين التاريخين '!#REF!,ROW()-16,0)),"") -> 
D63: =IF(h2g(TEXT($C$7+((ROW()-19)*29.5),"B2yyyy/mm/")&TEXT($C$7,"B2dd"))>$H$14,"",IF(h2g(TEXT($C$7+((ROW()-19)*29.5),"B2yyyy/mm/")&TEXT($C$7,"B2dd"))>h2g($C$9),"",TEXT($C$7+((ROW()-19)*29.5),"B2yyyy/mm/")&TEXT($C$7,"B2dd"))) ->  | G63: 2511.764706 | H63: =IF(I63<>"",G63-I63,IF(C63="","",IF(TODAY()>=h2g(D63),G63,""))) ->  | I63: =IFERROR(IF(VLOOKUP($B$2,' الفرق بين التاريخين '!#REF!,ROW()-16,0)=0,"",VLOOKUP($B$2,' الفرق بين التاريخين '!#REF!,ROW()-16,0)),"") -> 
D64: =IF(h2g(TEXT($C$7+((ROW()-19)*29.5),"B2yyyy/mm/")&TEXT($C$7,"B2dd"))>$H$14,"",IF(h2g(TEXT($C$7+((ROW()-19)*29.5),"B2yyyy/mm/")&TEXT($C$7,"B2dd"))>h2g($C$9),"",TEXT($C$7+((ROW()-19)*29.5),"B2yyyy/mm/")&TEXT($C$7,"B2dd"))) ->  | G64: 2511.764706 | H64: =IF(I64<>"",G64-I64,IF(C64="","",IF(TODAY()>=h2g(D64),G64,""))) ->  | I64: =IFERROR(IF(VLOOKUP($B$2,' الفرق بين التاريخين '!#REF!,ROW()-16,0)=0,"",VLOOKUP($B$2,' الفرق بين التاريخين '!#REF!,ROW()-16,0)),"") -> 
D65: =IF(h2g(TEXT($C$7+((ROW()-19)*29.5),"B2yyyy/mm/")&TEXT($C$7,"B2dd"))>$H$14,"",IF(h2g(TEXT($C$7+((ROW()-19)*29.5),"B2yyyy/mm/")&TEXT($C$7,"B2dd"))>h2g($C$9),"",TEXT($C$7+((ROW()-19)*29.5),"B2yyyy/mm/")&TEXT($C$7,"B2dd"))) ->  | G65: 2511.764706 | H65: =IF(I65<>"",G65-I65,IF(C65="","",IF(TODAY()>=h2g(D65),G65,""))) ->  | I65: =IFERROR(IF(VLOOKUP($B$2,' الفرق بين التاريخين '!#REF!,ROW()-16,0)=0,"",VLOOKUP($B$2,' الفرق بين التاريخين '!#REF!,ROW()-16,0)),"") -> 
C66: =IF(D66="","",ROW()-18) ->  | D66: =IF(h2g(TEXT($C$7+((ROW()-19)*29.5),"B2yyyy/mm/")&TEXT($C$7,"B2dd"))>$H$14,"",IF(h2g(TEXT($C$7+((ROW()-19)*29.5),"B2yyyy/mm/")&TEXT($C$7,"B2dd"))>h2g($C$9),"",TEXT($C$7+((ROW()-19)*29.5),"B2yyyy/mm/")&TEXT($C$7,"B2dd"))) ->  | E66: =IF(D66<>"",ConvertDate(D66),"") ->  | F66: =IF(D66="","",F65-G66) ->  | G66: 2511.764706 | H66: =IF(I66<>"",G66-I66,IF(C66="","",IF(TODAY()>=h2g(D66),G66,""))) ->  | I66: =IFERROR(IF(VLOOKUP($B$2,' الفرق بين التاريخين '!#REF!,ROW()-16,0)=0,"",VLOOKUP($B$2,' الفرق بين التاريخين '!#REF!,ROW()-16,0)),"") -> 
D67: =IF(h2g(TEXT($C$7+((ROW()-19)*29.5),"B2yyyy/mm/")&TEXT($C$7,"B2dd"))>$H$14,"",IF(h2g(TEXT($C$7+((ROW()-19)*29.5),"B2yyyy/mm/")&TEXT($C$7,"B2dd"))>h2g($C$9),"",TEXT($C$7+((ROW()-19)*29.5),"B2yyyy/mm/")&TEXT($C$7,"B2dd"))) ->  | G67: 2511.764706 | H67: =IF(I67<>"",G67-I67,IF(C67="","",IF(TODAY()>=h2g(D67),G67,""))) ->  | I67: =IFERROR(IF(VLOOKUP($B$2,' الفرق بين التاريخين '!#REF!,ROW()-16,0)=0,"",VLOOKUP($B$2,' الفرق بين التاريخين '!#REF!,ROW()-16,0)),"") -> 
D68: =IF(h2g(TEXT($C$7+((ROW()-19)*29.5),"B2yyyy/mm/")&TEXT($C$7,"B2dd"))>$H$14,"",IF(h2g(TEXT($C$7+((ROW()-19)*29.5),"B2yyyy/mm/")&TEXT($C$7,"B2dd"))>h2g($C$9),"",TEXT($C$7+((ROW()-19)*29.5),"B2yyyy/mm/")&TEXT($C$7,"B2dd"))) ->  | G68: 2511.764706 | H68: =IF(I68<>"",G68-I68,IF(C68="","",IF(TODAY()>=h2g(D68),G68,""))) ->  | I68: =IFERROR(IF(VLOOKUP($B$2,' الفرق بين التاريخين '!#REF!,ROW()-16,0)=0,"",VLOOKUP($B$2,' الفرق بين التاريخين '!#REF!,ROW()-16,0)),"") -> 
D69: =IF(h2g(TEXT($C$7+((ROW()-19)*29.5),"B2yyyy/mm/")&TEXT($C$7,"B2dd"))>$H$14,"",IF(h2g(TEXT($C$7+((ROW()-19)*29.5),"B2yyyy/mm/")&TEXT($C$7,"B2dd"))>h2g($C$9),"",TEXT($C$7+((ROW()-19)*29.5),"B2yyyy/mm/")&TEXT($C$7,"B2dd"))) ->  | G69: 2511.764706 | H69: =IF(I69<>"",G69-I69,IF(C69="","",IF(TODAY()>=h2g(D69),G69,""))) ->  | I69: =IFERROR(IF(VLOOKUP($B$2,' الفرق بين التاريخين '!#REF!,ROW()-16,0)=0,"",VLOOKUP($B$2,' الفرق بين التاريخين '!#REF!,ROW()-16,0)),"") -> 
D70: =IF(h2g(TEXT($C$7+((ROW()-19)*29.5),"B2yyyy/mm/")&TEXT($C$7,"B2dd"))>$H$14,"",IF(h2g(TEXT($C$7+((ROW()-19)*29.5),"B2yyyy/mm/")&TEXT($C$7,"B2dd"))>h2g($C$9),"",TEXT($C$7+((ROW()-19)*29.5),"B2yyyy/mm/")&TEXT($C$7,"B2dd"))) ->  | G70: 2511.764706 | H70: =IF(I70<>"",G70-I70,IF(C70="","",IF(TODAY()>=h2g(D70),G70,""))) ->  | I70: =IFERROR(IF(VLOOKUP($B$2,' الفرق بين التاريخين '!#REF!,ROW()-16,0)=0,"",VLOOKUP($B$2,' الفرق بين التاريخين '!#REF!,ROW()-16,0)),"") -> 
D71: =IF(h2g(TEXT($C$7+((ROW()-19)*29.5),"B2yyyy/mm/")&TEXT($C$7,"B2dd"))>$H$14,"",IF(h2g(TEXT($C$7+((ROW()-19)*29.5),"B2yyyy/mm/")&TEXT($C$7,"B2dd"))>h2g($C$9),"",TEXT($C$7+((ROW()-19)*29.5),"B2yyyy/mm/")&TEXT($C$7,"B2dd"))) ->  | G71: 2511.764706 | H71: =IF(I71<>"",G71-I71,IF(C71="","",IF(TODAY()>=h2g(D71),G71,""))) ->  | I71: =IFERROR(IF(VLOOKUP($B$2,' الفرق بين التاريخين '!#REF!,ROW()-16,0)=0,"",VLOOKUP($B$2,' الفرق بين التاريخين '!#REF!,ROW()-16,0)),"") -> 
D72: =IF(h2g(TEXT($C$7+((ROW()-19)*29.5),"B2yyyy/mm/")&TEXT($C$7,"B2dd"))>$H$14,"",IF(h2g(TEXT($C$7+((ROW()-19)*29.5),"B2yyyy/mm/")&TEXT($C$7,"B2dd"))>h2g($C$9),"",TEXT($C$7+((ROW()-19)*29.5),"B2yyyy/mm/")&TEXT($C$7,"B2dd"))) ->  | G72: 2511.764706 | H72: =IF(I72<>"",G72-I72,IF(C72="","",IF(TODAY()>=h2g(D72),G72,""))) ->  | I72: =IFERROR(IF(VLOOKUP($B$2,' الفرق بين التاريخين '!#REF!,ROW()-16,0)=0,"",VLOOKUP($B$2,' الفرق بين التاريخين '!#REF!,ROW()-16,0)),"") -> 
D73: =IF(h2g(TEXT($C$7+((ROW()-19)*29.5),"B2yyyy/mm/")&TEXT($C$7,"B2dd"))>$H$14,"",IF(h2g(TEXT($C$7+((ROW()-19)*29.5),"B2yyyy/mm/")&TEXT($C$7,"B2dd"))>h2g($C$9),"",TEXT($C$7+((ROW()-19)*29.5),"B2yyyy/mm/")&TEXT($C$7,"B2dd"))) ->  | G73: 2511.764706 | H73: =IF(I73<>"",G73-I73,IF(C73="","",IF(TODAY()>=h2g(D73),G73,""))) ->  | I73: =IFERROR(IF(VLOOKUP($B$2,' الفرق بين التاريخين '!#REF!,ROW()-16,0)=0,"",VLOOKUP($B$2,' الفرق بين التاريخين '!#REF!,ROW()-16,0)),"") -> 
D74: =IF(h2g(TEXT($C$7+((ROW()-19)*29.5),"B2yyyy/mm/")&TEXT($C$7,"B2dd"))>$H$14,"",IF(h2g(TEXT($C$7+((ROW()-19)*29.5),"B2yyyy/mm/")&TEXT($C$7,"B2dd"))>h2g($C$9),"",TEXT($C$7+((ROW()-19)*29.5),"B2yyyy/mm/")&TEXT($C$7,"B2dd"))) ->  | G74: 2511.764706 | H74: =IF(I74<>"",G74-I74,IF(C74="","",IF(TODAY()>=h2g(D74),G74,""))) ->  | I74: =IFERROR(IF(VLOOKUP($B$2,' الفرق بين التاريخين '!#REF!,ROW()-16,0)=0,"",VLOOKUP($B$2,' الفرق بين التاريخين '!#REF!,ROW()-16,0)),"") -> 
D75: =IF(h2g(TEXT($C$7+((ROW()-19)*29.5),"B2yyyy/mm/")&TEXT($C$7,"B2dd"))>$H$14,"",IF(h2g(TEXT($C$7+((ROW()-19)*29.5),"B2yyyy/mm/")&TEXT($C$7,"B2dd"))>h2g($C$9),"",TEXT($C$7+((ROW()-19)*29.5),"B2yyyy/mm/")&TEXT($C$7,"B2dd"))) ->  | G75: 2511.764706 | H75: =IF(I75<>"",G75-I75,IF(C75="","",IF(TODAY()>=h2g(D75),G75,""))) ->  | I75: =IFERROR(IF(VLOOKUP($B$2,' الفرق بين التاريخين '!#REF!,ROW()-16,0)=0,"",VLOOKUP($B$2,' الفرق بين التاريخين '!#REF!,ROW()-16,0)),"") -> 
D76: =IF(h2g(TEXT($C$7+((ROW()-19)*29.5),"B2yyyy/mm/")&TEXT($C$7,"B2dd"))>$H$14,"",IF(h2g(TEXT($C$7+((ROW()-19)*29.5),"B2yyyy/mm/")&TEXT($C$7,"B2dd"))>h2g($C$9),"",TEXT($C$7+((ROW()-19)*29.5),"B2yyyy/mm/")&TEXT($C$7,"B2dd"))) ->  | G76: 2511.764706 | H76: =IF(I76<>"",G76-I76,IF(C76="","",IF(TODAY()>=h2g(D76),G76,""))) ->  | I76: =IFERROR(IF(VLOOKUP($B$2,' الفرق بين التاريخين '!#REF!,ROW()-16,0)=0,"",VLOOKUP($B$2,' الفرق بين التاريخين '!#REF!,ROW()-16,0)),"") -> 
D77: =IF(h2g(TEXT($C$7+((ROW()-19)*29.5),"B2yyyy/mm/")&TEXT($C$7,"B2dd"))>$H$14,"",IF(h2g(TEXT($C$7+((ROW()-19)*29.5),"B2yyyy/mm/")&TEXT($C$7,"B2dd"))>h2g($C$9),"",TEXT($C$7+((ROW()-19)*29.5),"B2yyyy/mm/")&TEXT($C$7,"B2dd"))) ->  | G77: 2511.764706 | H77: =IF(I77<>"",G77-I77,IF(C77="","",IF(TODAY()>=h2g(D77),G77,""))) ->  | I77: =IFERROR(IF(VLOOKUP($B$2,' الفرق بين التاريخين '!#REF!,ROW()-16,0)=0,"",VLOOKUP($B$2,' الفرق بين التاريخين '!#REF!,ROW()-16,0)),"") -> 
D78: =IF(h2g(TEXT($C$7+((ROW()-19)*29.5),"B2yyyy/mm/")&TEXT($C$7,"B2dd"))>$H$14,"",IF(h2g(TEXT($C$7+((ROW()-19)*29.5),"B2yyyy/mm/")&TEXT($C$7,"B2dd"))>h2g($C$9),"",TEXT($C$7+((ROW()-19)*29.5),"B2yyyy/mm/")&TEXT($C$7,"B2dd"))) ->  | G78: 2511.764706 | H78: =IF(I78<>"",G78-I78,IF(C78="","",IF(TODAY()>=h2g(D78),G78,""))) ->  | I78: =IFERROR(IF(VLOOKUP($B$2,' الفرق بين التاريخين '!#REF!,ROW()-16,0)=0,"",VLOOKUP($B$2,' الفرق بين التاريخين '!#REF!,ROW()-16,0)),"") -> 

Sheet تسديد عميل
G5: تاريخ اليوم : | H5: =TODAY() -> 2023-11-19
B6: ملف العميــل | C6: 2900 | D6: الاســـــم | E6: =VLOOKUP(' تسديد عميل'!C6,المقسطون!B26:I61,2,0) -> 1
D8: مدة القرض (بالاشهر) | E8: =VLOOKUP(C6,المقسطون!$B$26:$H$61,3,0) -> 17 | G8: القسـط الشهري | H8: =VLOOKUP(C6,المقسطون!$B$26:$H$61,6,0) -> 2511.764706
D9: تاريـخ بدايـة القـرض | E9: =VLOOKUP(C6,المقسطون!$B$26:$H$61,7,0) -> 2023-11-27 | G9: الســعر النقـدي | H9: =VLOOKUP(C6,المقسطون!$B$26:$H$61,4,0) -> 35000
D10: تاريـخ نهايـة القـرض | E10: =TEXT(E9+((E8-1)*29.5),"B2yyyy/mm/")&TEXT(E9,"B2dd") -> 1446/09/15 | G10: الربــــــــــــح | H10: =VLOOKUP(C6,المقسطون!B26:K61,9,0) -> 7700
D11: حــــــالة العقـــــــد | E11: =VLOOKUP(C6,المقسطون!B27:N62,11,0) -> لم يتم تداولة | G11: قيمــة القــرض | H11: =VLOOKUP(C6,المقسطون!B26:I61,5,0) -> 42700
D12: نسبة السداد بـ % | E12: =H12/H11 -> 0 | G12: المبالغ المســددة | H12: =SUM(H19:H58) -> 0
G13: المبالغ المتبيقية | H13: =SUM(H11-H12) -> 42700
G14: الأشهر المسددة | H14: =(H12/H8) -> 0
G15: الأشهر المتبقية | H15: =H13/H8 -> 17
E16: حركة تسديد عميل
D18: الشهــر | E18: تاريخ التحصيل | F18: رصيد القرض | G18: القسط | H18: التسديدات
D19: =IF(ROW()-18>$E$8,"",ROW()-18) -> 1 | E19: =IF(D19="","",TEXT($E$9+((D19-1)*29.5),"B2yyyy/mm/")&TEXT($E$9,"B2dd")) -> 1445/05/15 | F19: =H11 -> 42700 | G19: =IF(E19="","",IF($H$11="","",$H$11/$E$8)) -> 2511.764706 | H19: =IF(D19="","",IF(TODAY()>=h2g(E19),G19,"")) -> 
D20: 2 | E20: =IF(D20="","",TEXT($E$9+((D20-1)*29.5),"B2yyyy/mm/")&TEXT($E$9,"B2dd")) -> 1445/06/15 | F20: =IF(E20="","",F19-G20) -> 40188.23529 | G20: 2511.764706 | H20: =IF(D20="","",IF(TODAY()>=h2g(E20),G20,"")) -> 
D21: 3 | E21: 1445/07/15 | F21: =IF(E21="","",F20-G21) -> 37676.47059 | G21: 2511.764706 | H21: =IF(D21="","",IF(TODAY()>=h2g(E21),G21,"")) -> 
D22: 4 | E22: =IF(D22="","",TEXT($E$9+((D22-1)*29.5),"B2yyyy/mm/")&TEXT($E$9,"B2dd")) -> 1445/08/15 | F22: 35164.70588 | G22: 2511.764706 | H22: =IF(D22="","",IF(TODAY()>=h2g(E22),G22,"")) -> 
D23: 5 | E23: 1445/09/15 | F23: 32652.94118 | G23: 2511.764706 | H23: =IF(D23="","",IF(TODAY()>=h2g(E23),G23,"")) -> 
D24: 6 | E24: 1445/10/15 | F24: 30141.17647 | G24: 2511.764706 | H24: =IF(D24="","",IF(TODAY()>=h2g(E24),G24,"")) -> 
D25: 7 | E25: 1445/11/15 | F25: 27629.41176 | G25: 2511.764706 | H25: =IF(D25="","",IF(TODAY()>=h2g(E25),G25,"")) -> 
D26: 8 | E26: 1445/12/15 | F26: 25117.64706 | G26: 2511.764706 | H26: =IF(D26="","",IF(TODAY()>=h2g(E26),G26,"")) -> 
D27: 9 | E27: 1446/01/15 | F27: 22605.88235 | G27: 2511.764706 | H27: =IF(D27="","",IF(TODAY()>=h2g(E27),G27,"")) -> 
D28: 10 | E28: 1446/02/15 | F28: 20094.11765 | G28: 2511.764706 | H28: =IF(D28="","",IF(TODAY()>=h2g(E28),G28,"")) -> 
D29: 11 | E29: 1446/03/15 | F29: 17582.35294 | G29: 2511.764706 | H29: =IF(D29="","",IF(TODAY()>=h2g(E29),G29,"")) -> 
D30: 12 | E30: 1446/04/15 | F30: 15070.58824 | G30: 2511.764706 | H30: =IF(D30="","",IF(TODAY()>=h2g(E30),G30,"")) -> 
D31: 13 | E31: 1446/05/15 | F31: 12558.82353 | G31: 2511.764706 | H31: =IF(D31="","",IF(TODAY()>=h2g(E31),G31,"")) -> 
D32: 14 | E32: 1446/06/15 | F32: 10047.05882 | G32: 2511.764706 | H32: =IF(D32="","",IF(TODAY()>=h2g(E32),G32,"")) -> 
D33: 15 | E33: 1446/07/15 | F33: 7535.294118 | G33: 2511.764706 | H33: =IF(D33="","",IF(TODAY()>=h2g(E33),G33,"")) -> 
D34: 16 | E34: 1446/08/15 | F34: 5023.529412 | G34: 2511.764706 | H34: =IF(D34="","",IF(TODAY()>=h2g(E34),G34,"")) -> 
D35: 17 | E35: 1446/09/15 | F35: 2511.764706 | G35: 2511.764706 | H35: =IF(D35="","",IF(TODAY()>=h2g(E35),G35,"")) -> 
H36: =IF(D36="","",IF(TODAY()>=h2g(E36),G36,"")) -> 
H37: =IF(D37="","",IF(TODAY()>=h2g(E37),G37,"")) -> 
H38: =IF(D38="","",IF(TODAY()>=h2g(E38),G38,"")) -> 
H39: =IF(D39="","",IF(TODAY()>=h2g(E39),G39,"")) -> 
H40: =IF(D40="","",IF(TODAY()>=h2g(E40),G40,"")) -> 
H41: =IF(D41="","",IF(TODAY()>=h2g(E41),G41,"")) -> 
H42: =IF(D42="","",IF(TODAY()>=h2g(E42),G42,"")) -> 
H43: =IF(D43="","",IF(TODAY()>=h2g(E43),G43,"")) -> 
H44: =IF(D44="","",IF(TODAY()>=h2g(E44),G44,"")) -> 
H45: =IF(D45="","",IF(TODAY()>=h2g(E45),G45,"")) -> 
H46: =IF(D46="","",IF(TODAY()>=h2g(E46),G46,"")) -> 
H47: =IF(D47="","",IF(TODAY()>=h2g(E47),G47,"")) -> 
H48: =IF(D48="","",IF(TODAY()>=h2g(E48),G48,"")) -> 
H49: =IF(D49="","",IF(TODAY()>=h2g(E49),G49,"")) -> 
H50: =IF(D50="","",IF(TODAY()>=h2g(E50),G50,"")) -> 
H51: =IF(D51="","",IF(TODAY()>=h2g(E51),G51,"")) -> 
H52: =IF(D52="","",IF(TODAY()>=h2g(E52),G52,"")) -> 
H53: =IF(D53="","",IF(TODAY()>=h2g(E53),G53,"")) -> 
H54: =IF(D54="","",IF(TODAY()>=h2g(E54),G54,"")) -> 
H55: =IF(D55="","",IF(TODAY()>=h2g(E55),G55,"")) -> 
H56: =IF(D56="","",IF(TODAY()>=h2g(E56),G56,"")) -> 
H57: =IF(D57="","",IF(TODAY()>=h2g(E57),G57,"")) -> 
H58: =IF(D58="","",IF(TODAY()>=h2g(E58),G58,"")) -> 
E59: =IF(D59="","",TEXT($E$9+((D59-1)*29.5),"B2yyyy/mm/")&TEXT($E$9,"B2dd")) ->  | F59: =IF(E59="","",F58-G59) ->  | G59: =IF(E59="","",IF($H$11="","",$H$11/$E$8)) ->  | H59: =IF(D59="","",IF(TODAY()>=h2g(E59),G59,"")) -> 
H60: =IF(D60="","",IF(TODAY()>=h2g(E60),G60,"")) -> 
H61: =IF(D61="","",IF(TODAY()>=h2g(E61),G61,"")) -> 
H62: =IF(D62="","",IF(TODAY()>=h2g(E62),G62,"")) -> 
E63: =IF(D63="","",TEXT($E$9+((D63-1)*29.5),"B2yyyy/mm/")&TEXT($E$9,"B2dd")) ->  | F63: =IF(E63="","",F62-G63) ->  | G63: =IF(E63="","",IF($H$11="","",$H$11/$E$8)) ->  | H63: =IF(D63="","",IF(TODAY()>=h2g(E63),G63,"")) -> 
H64: =IF(D64="","",IF(TODAY()>=h2g(E64),G64,"")) -> 
H65: =IF(D65="","",IF(TODAY()>=h2g(E65),G65,"")) -> 
H66: =IF(D66="","",IF(TODAY()>=h2g(E66),G66,"")) -> 
H67: =IF(D67="","",IF(TODAY()>=h2g(E67),G67,"")) -> 
H68: =IF(D68="","",IF(TODAY()>=h2g(E68),G68,"")) -> 
H69: =IF(D69="","",IF(TODAY()>=h2g(E69),G69,"")) -> 
H70: =IF(D70="","",IF(TODAY()>=h2g(E70),G70,"")) -> 
H71: =IF(D71="","",IF(TODAY()>=h2g(E71),G71,"")) -> 
H72: =IF(D72="","",IF(TODAY()>=h2g(E72),G72,"")) -> 
H73: =IF(D73="","",IF(TODAY()>=h2g(E73),G73,"")) -> 
H74: =IF(D74="","",IF(TODAY()>=h2g(E74),G74,"")) -> 
H75: =IF(D75="","",IF(TODAY()>=h2g(E75),G75,"")) -> 
H76: =IF(D76="","",IF(TODAY()>=h2g(E76),G76,"")) -> 
H77: =IF(D77="","",IF(TODAY()>=h2g(E77),G77,"")) -> 
H78: =IF(D78="","",IF(TODAY()>=h2g(E78),G78,"")) -> 

Sheet الاقساط والاشهر
B2: الشـــــــهر | C2: 60
B4: المبلغ الاساسي | C4: 50000
B5: الـزيادة | C5: =INDEX(D10:D69,MATCH(C2,B10:B69,0)) -> 32500
B6: المبلغ بعد الزيادة | C6: =INDEX(C10:C69,MATCH(C2,B10:B69,0)) -> 82500
B7: القسط الشهري | C7: =INDEX(E10:E69,MATCH(C2,B10:B69,0)) -> 1375
B9: الاشهر | C9: المبلغ بعد الزيادة | D9: الزيادة | E9: القسط الشهري
B10: 1 | C10: =C4+D10 -> 50750 | D10: =C4*0.015 -> 750 | E10: =C10/1 -> 50750
B11: 2 | C11: =C4+D11 -> 51250 | D11: =C4*0.025 -> 1250 | E11: =C11/2 -> 25625
B12: 3 | C12: =C4+D12 -> 51750 | D12: =C4*0.035 -> 1750 | E12: =C12/3 -> 17250
B13: 4 | C13: =C4+D13 -> 52250 | D13: =C4*0.045 -> 2250 | E13: =C13/4 -> 13062.5
B14: 5 | C14: =C4+D14 -> 52750 | D14: =C4*0.055 -> 2750 | E14: =C14/5 -> 10550
B15: 6 | C15: =C4+D15 -> 53250 | D15: =C4*0.065 -> 3250 | E15: =C15/6 -> 8875
B16: 7 | C16: =C4+D16 -> 53750 | D16: =C4*0.075 -> 3750 | E16: =C16/7 -> 7678.571429
B17: 8 | C17: =C4+D17 -> 54250 | D17: =C4*0.085 -> 4250 | E17: =C17/8 -> 6781.25
B18: 9 | C18: =C4+D18 -> 54750 | D18: =C4*0.095 -> 4750 | E18: =C18/9 -> 6083.333333
B19: 10 | C19: =C4+D19 -> 57500 | D19: =C4*0.15 -> 7500 | E19: =C19/10 -> 5750
B20: 11 | C20: =C4+D20 -> 58000 | D20: =C4*0.16 -> 8000 | E20: =C20/11 -> 5272.727273
B21: 12 | C21: =C4+D21 -> 58500 | D21: =C4*0.17 -> 8500 | E21: =C21/12 -> 4875
B22: 13 | C22: =C4+D22 -> 59000 | D22: =C4*0.18 -> 9000 | E22: =C22/13 -> 4538.461538
B23: 14 | C23: =C4+D23 -> 59500 | D23: =C4*0.19 -> 9500 | E23: =C23/14 -> 4250
B24: 15 | C24: =C4+D24 -> 60000 | D24: =C4*0.2 -> 10000 | E24: =C24/15 -> 4000
B25: 16 | C25: =C4+D25 -> 60500 | D25: =C4*0.21 -> 10500 | E25: =C25/16 -> 3781.25
B26: 17 | C26: =C4+D26 -> 61000 | D26: =C4*0.22 -> 11000 | E26: =C26/17 -> 3588.235294
B27: 18 | C27: =C4+D27 -> 61500 | D27: =C4*0.23 -> 11500 | E27: =C27/18 -> 3416.666667
B28: 19 | C28: =C4+D28 -> 62000 | D28: =C4*0.24 -> 12000 | E28: =C28/19 -> 3263.157895
B29: 20 | C29: =C4+D29 -> 62500 | D29: =C4*0.25 -> 12500 | E29: =C29/20 -> 3125
B30: 21 | C30: =C4+D30 -> 63000 | D30: =C4*0.26 -> 13000 | E30: =C30/21 -> 3000
B31: 22 | C31: =C4+D31 -> 63500 | D31: =C4*0.27 -> 13500 | E31: =C31/22 -> 2886.363636
B32: 23 | C32: =C4+D32 -> 64000 | D32: =C4*0.28 -> 14000 | E32: =C32/23 -> 2782.608696
B33: 24 | C33: =C4+D33 -> 64500 | D33: =C4*0.29 -> 14500 | E33: =C33/24 -> 2687.5
B34: 25 | C34: =C4+D34 -> 65000 | D34: =C4*0.3 -> 15000 | E34: =C34/25 -> 2600
B35: 26 | C35: =C4+D35 -> 65500 | D35: =C4*0.31 -> 15500 | E35: =C35/26 -> 2519.230769
B36: 27 | C36: =C4+D36 -> 66000 | D36: =C4*0.32 -> 16000 | E36: =C36/27 -> 2444.444444
B37: 28 | C37: =C4+D37 -> 66500 | D37: =C4*0.33 -> 16500 | E37: =C37/28 -> 2375
B38: 29 | C38: =C4+D38 -> 67000 | D38: =C4*0.34 -> 17000 | E38: =C38/29 -> 2310.344828
B39: 30 | C39: =C4+D39 -> 67500 | D39: =C4*0.35 -> 17500 | E39: =C39/30 -> 2250
B40: 31 | C40: =C4+D40 -> 68000 | D40: =C4*0.36 -> 18000 | E40: =C40/31 -> 2193.548387
B41: 32 | C41: =C4+D41 -> 68500 | D41: =C4*0.37 -> 18500 | E41: =C41/32 -> 2140.625
B42: 33 | C42: =C4+D42 -> 69000 | D42: =C4*0.38 -> 19000 | E42: =C42/33 -> 2090.909091
B43: 34 | C43: =C4+D43 -> 69500 | D43: =C4*0.39 -> 19500 | E43: =C43/34 -> 2044.117647
B44: 35 | C44: =C4+D44 -> 70000 | D44: =C4*0.4 -> 20000 | E44: =C44/35 -> 2000
B45: 36 | C45: =C4+D45 -> 70500 | D45: =C4*0.41 -> 20500 | E45: =C45/36 -> 1958.333333
B46: 37 | C46: =C4+D46 -> 71000 | D46: =C4*0.42 -> 21000 | E46: =C46/37 -> 1918.918919
B47: 38 | C47: =C4+D47 -> 71500 | D47: =C4*0.43 -> 21500 | E47: =C47/38 -> 1881.578947
B48: 39 | C48: =C4+D48 -> 72000 | D48: =C4*0.44 -> 22000 | E48: =C48/39 -> 1846.153846
B49: 40 | C49: =C4+D49 -> 72500 | D49: =C4*0.45 -> 22500 | E49: =C49/40 -> 1812.5
B50: 41 | C50: =C4+D50 -> 73000 | D50: =C4*0.46 -> 23000 | E50: =C50/41 -> 1780.487805
B51: 42 | C51: =C4+D51 -> 73500 | D51: =C4*0.47 -> 23500 | E51: =C51/42 -> 1750
B52: 43 | C52: =C4+D52 -> 74000 | D52: =C4*0.48 -> 24000 | E52: =C52/43 -> 1720.930233
B53: 44 | C53: =C4+D53 -> 74500 | D53: =C4*0.49 -> 24500 | E53: =C53/44 -> 1693.181818
B54: 45 | C54: =C4+D54 -> 75000 | D54: =C4*0.5 -> 25000 | E54: =C54/45 -> 1666.666667
B55: 46 | C55: =C4+D55 -> 75500 | D55: =C4*0.51 -> 25500 | E55: =C55/46 -> 1641.304348
B56: 47 | C56: =C4+D56 -> 76000 | D56: =C4*0.52 -> 26000 | E56: =C56/47 -> 1617.021277
B57: 48 | C57: =C4+D57 -> 76500 | D57: =C4*0.53 -> 26500 | E57: =C57/48 -> 1593.75
B58: 49 | C58: =C4+D58 -> 77000 | D58: =C4*0.54 -> 27000 | E58: =C58/49 -> 1571.428571
B59: 50 | C59: =C4+D59 -> 77500 | D59: =C4*0.55 -> 27500 | E59: =C59/50 -> 1550
B60: 51 | C60: =C4+D60 -> 78000 | D60: =C4*0.56 -> 28000 | E60: =C60/51 -> 1529.411765
B61: 52 | C61: =C4+D61 -> 78500 | D61: =C4*0.57 -> 28500 | E61: =C61/52 -> 1509.615385
B62: 53 | C62: =C4+D62 -> 79000 | D62: =C4*0.58 -> 29000 | E62: =C62/53 -> 1490.566038
B63: 54 | C63: =C4+D63 -> 79500 | D63: =C4*0.59 -> 29500 | E63: =C63/54 -> 1472.222222
B64: 55 | C64: =C4+D64 -> 80000 | D64: =C4*0.6 -> 30000 | E64: =C64/55 -> 1454.545455
B65: 56 | C65: =C4+D65 -> 80500 | D65: =C4*0.61 -> 30500 | E65: =C65/56 -> 1437.5
B66: 57 | C66: =C4+D66 -> 81000 | D66: =C4*0.62 -> 31000 | E66: =C66/57 -> 1421.052632
B67: 58 | C67: =C4+D67 -> 81500 | D67: =C4*0.63 -> 31500 | E67: =C67/58 -> 1405.172414
B68: 59 | C68: =C4+D68 -> 82000 | D68: =C4*0.64 -> 32000 | E68: =C68/59 -> 1389.830508
B69: 60 | C69: =C4+D69 -> 82500 | D69: =C4*0.65 -> 32500 | E69: =C69/60 -> 1375

Sheet نموذج
B2: الرقم : | C2: 100 | I2: التاريخ:
N4: 1
B5: إقـــــــــــــــــــــــــــــرار
B7: الحمد لله رب العالمين والصلاة والسلام على نبينا محمد وعلى آله وصحبه وسلم وبعد :
B9: أقــر أنـا : | C9: =VLOOKUP(C2,المقسطون!B26:L62,2,0) -> 1900-01-01
C11: رقــــم الهويــــة الوطنيـــــة : | F11: تاريخها : | I11: مصدرها :
B13: وأنــا بحـالتي المعتبـرة شـرعاً بأن عنـدي وفـي ذمتـي للأخ /
B15: مبلغــاً مـن المــال وقــدره : | E15: ريـــــــــــــال | F15: =IF(LEN($D$15)>0,B_Only(D15,1,0,2,"ريال","ريالان","ريالات"),"") -> 
B17: وذلك قيمة سيارة :
B18: نوعهـــــــا : | I18: موديلها :
B20: رقم الهيكل : | I20: اللـــون :
B22: الحـــــــــالة:
B24: وإستلمتها بعد معاينتها وقبلتها بحالتها الراهنة ، على أن يكون السداد على النحو التالي :
B26: أولاً: | C26: مدة التقسـيط | E26: =NoToTxt(D26,"شـهراً","") -> ÕÝÑ
D27: 0
B28: ثانياً : | C28: أن أدفــع مبلغــاً مقدمـاً قــدره : | F28: ريـــــال | G28: =IF(LEN($E$28)>0,B_Only(E28,1,0,2,"ريال","ريالان","ريالات"),"") -> 
B30: ثالثاً : | C30: أن أدفــع المتبــقي مــن قيمــة السيــارة عــلى أقســاط شـهريــة قيمــة كــل قســط :
D32: ريــــــــــــــال | E32: =IF(LEN($C$32)>0,B_Only(C32,1,0,2,"ريال","ريالان","ريالات"),"") -> 
B34: تبدأ من شهر | D34: من تاريــــــخ : | H34: الى تاريخ | I34: =CONCATENATE(MID(E$34,1,4)+INT((MID(E$34,6,2)+D$26-2)/12),"/",TEXT(IF(MOD(MID(E$34,6,2)+D26,12)>1,MOD(MID(E$34,6,2)+D$26-1,12),MOD(MID(E$34,6,2)+D$26,12)+11),"00"),"/",RIGHT(E34,2)) -> 
B35: ويستمر التقسيط حتى سداد كامل المبلغ 0وإنني أتعهد على نفسي بعدم تأخير أي قسط عن موعده او تأجيله أو المماطلة في الدفع
B36: وأعطي على ذلك عهد الله وميثاقه المؤكد.وعليه جرى الإقرار والتوقيع والله على ذلك شهيد 0
B38: المقر بما فيه : | C38: الإســــــــم : | I38: التوقيع : | J38: ...............................
B40: الوظيفـــــة : | E40: جهة العمل : | I40: قسم :
B42: هاتف العمل : | E42: هاتف المنزل : | I42: جوال :
B45: إقرار كفالة غرم وأداء
B47: أقــر أنـا :
B49: الهوية الوطنية : | F49: تاريخها : | I49: مصـدرها :
B51: أقر بأنني أكفل الطرف الثاني كفالة غرم وأداء إذا تأخر في دفع ما عليه من مسستحقات وأتحمل المسئولية كاملة في دفع هذه المستحقات
B52: في مواعيدها المحددة بالإتفاق المتقدم ذكره
B53: الكفيل الغارم : | C53: الإســــم : | I53: التوقيع : | J53: ...............................
B55: الوظيفـــــة : | E55: جهة العمل : | I55: قسم :
B57: هاتف العمل : | E57: هاتف المنزل : | I57: جوال :
B60: ملاحظـة :
Q62: الشهور
P63: 1 | Q63: محرم
P64: 2 | Q64: صفر
P65: 3 | Q65: ربيع الأول
P66: 4 | Q66: ربيع الأخر
P67: 5 | Q67: جمادى الأولى
P68: 6 | Q68: جمادى الأخرة
P69: 7 | Q69: رجب
P70: 8 | Q70: شعبان
P71: 9 | Q71: رمضان
P72: 10 | Q72: شوال
P73: 11 | Q73: ذو القعدة
P74: 12 | Q74: ذو الحجة

Sheet data
A1: 1 | B1: 2 | C1: 3 | D1: 4 | E1: 5 | F1: 6 | G1: 7 | H1: 8 | I1: 9 | J1: 10 | K1: 11 | L1: 12 | M1: 13 | N1: 14 | O1: 15 | P1: 16 | Q1: 17 | R1: 18 | S1: 19 | T1: 20 | U1: 21 | V1: 22 | W1: 23 | X1: 24 | Y1: 25 | Z1: 26 | AA1: 27 | AB1: 28 | AC1: 29 | AD1: 30 | AE1: 31 | AF1: 32 | AG1: 33 | AH1: 34 | AI1: 35 | AJ1: 36 | AK1: 37
A2: الرقم | B2: التاريخ | C2: اسم المشتري | D2: الهوية الوطنية | E2: تاريخها | F2: مصدرها | G2: اسم البائع | H2: المبلغ | I2: نوع السيارة | J2: مودليها | K2: رقم الهيكل | L2: لون السيارة | M2: حالة السيارة | N2: مدة القسط | O2: المقدم | P2: القسط الشهري | Q2: شهر القسط | R2: تاريخ القسط | S2: اسم المشتري | T2: الوظيفة | U2: جهة العمل | V2: قسم | W2: هاتف العمل | X2: هاتف المنزل | Y2: جوال المشتري | Z2: اسم الكفيل | AA2: ر هوية وطنية | AB2: تاريخها | AC2: مصدرها | AD2: اسم الكفيل | AE2: الوظيفة | AF2: جهة العمل | AG2: قسم | AH2: هاتف العمل | AI2: هاتف المنزل | AJ2: جوال الكفيل | AK2: ملاحظات
A3: 100 | G3: محمد | H3: 5464 | N3: 30 | O3: 3232 | R3: 1436/09/25

Sheet الفرق بين التاريخين
B2: الفرق بين التاريخين عدد السنين بخلية وعدد الاشهر بخلية وعدد الأيام بخلية
B4: تاريخ بداية العقد بالهجري | D4: تاريخ نهاية العقد بالهجري
B5: 1442/3/03 | D5: 1444/1/03
B7: مدة الخدمة | C7: عدد السنوات | D7: عدد الأشهر | F7: عدد الأيام
C8: =kh_count_y_m_d($B$5,$D$5,"y",1) -> 1 | D8: =kh_count_y_m_d($B$5,$D$5,"m",1) -> 10 | F8: =kh_count_y_m_d($B$5,$D$5,"d",1) -> 22
C10: 1443/01/01 | F10: =ConvertDate(C10) -> 2021/08/09
C12: تاريخ الفاتورة | D12: عدد الأشهر | F12: تاريخ الإنتهاء
C13: 2020-12-09 | D13: 5 | F13: =MID(TEXT(C13,"b2dd.mm.yyyy"),1,2)-MID(TEXT(C13+ROUND((D13)*354.367056/12,0),"b2dd.mm.yyyy"),1,2)+C13+ROUND((D13)*354.367056/12,0) -> 2021-05-05
B15: =TEXT(B35,"[$-,197000]B2dd/mm/yyyy;@") | E15: 2020-03-01
B16: =TEXT(B35,"[$-,197000]B2dd/mm/yyyy;@") | E16: =TEXT(E15,"[$-,197000]B2yyyy/mm/dd;@") -> 2020/03/01
E17: =TEXT(E15,"[$-,197]B2yyyy/mm/dd;@") -> 1441/07/06
